fUSD/lending_fUSD_20251113
["ID","MTS","AMOUNT","RATE_DAILY","PERIOD"]
[393840311,1763033442182,-181.207041,0.00035821,30]
[393840312,1763033442192,-181.207041,0.00035821,30]
[393840313,1763033442201,-181.207037,0.00035821,30]
[393840314,1763033442211,-2886.417422,0.00035821,28]
[393840315,1763033442220,-2886.417422,0.00035821,28]
[393840316,1763033442229,-2886.417422,0.00035821,28]
[393840317,1763033442238,-2886.417414,0.00035821,28]
[393840318,1763033442247,-12715.0405634,0.00035848,3]
[393840319,1763033442257,-157.35,0.00035862,120]
[393840320,1763033442266,-1006.54758943,0.00035868,5]
[393840321,1763033442275,-5000.0,0.00035868,2]
[393840323,1763033442284,-150.34604515,0.00035873,5]
[393840324,1763033442293,-500.0,0.00035873,5]
[393840325,1763033442302,-500.0,0.00035875,5]
[393840326,1763033442312,-222.91426896,0.00035875,5]
[393840327,1763033442321,-918.37,0.00035954,30]
[393840328,1763033442340,-999.0,0.00035962,3]
[393840329,1763033442349,-250.0,0.00035971,2]
[393840330,1763033442358,-1455.77,0.00036073,14]
[393840331,1763033442367,-1000.0,0.00036075,2]
[393840332,1763033442376,-175.64,0.00036095,60]
[393840333,1763033442386,-603.29,0.00036129,2]
[393840334,1763033442395,-152.0,0.00036137,4]
[393840335,1763033442404,-12715.0405634,0.0003618,3]
[393840336,1763033442414,-1000.0,0.000363,7]
[393840337,1763033442423,-151.0,0.00036308,31]
[393840338,1763033442432,-699.71,0.00036308,2]
[393840339,1763033442440,-699.71,0.00036308,2]
[393840340,1763033442449,-699.71,0.00036308,2]
[393840341,1763033442458,-699.71,0.00036308,2]
[393840342,1763033442468,-699.71,0.00036308,2]
[393840343,1763033442477,-699.71,0.00036308,2]
[393840344,1763033442486,-699.71,0.00036308,2]
[393840345,1763033442495,-699.71,0.00036308,2]
[393840346,1763033442505,-699.71,0.00036308,2]
[393840347,1763033442514,-611.82,0.00036308,2]
[393840348,1763033442523,-4513.04384974,0.00036326,2]
[393840349,1763033442533,-5620.74589575,0.00036336,2]
[393840350,1763033442541,-12715.0405634,0.00036338,3]
[393840351,1763033442555,-1455.77,0.00036347,14]
[393840352,1763033442570,-12715.0405634,0.00036353,3]
[393840353,1763033442583,-151.0,0.00036358,30]
[393840354,1763033442595,-151.0,0.00036358,31]
[393840355,1763033442606,-151.0,0.00036358,31]
[393840356,1763033442618,-151.0,0.00036358,31]
[393840357,1763033442631,-151.0,0.00036358,31]
[393840358,1763033442643,-151.0,0.00036358,31]
[393840359,1763033442656,-151.0,0.00036358,31]
[393840360,1763033442669,-396.298166,0.00036358,31]
[393840361,1763033442684,-396.298166,0.00036358,31]
[393840362,1763033442696,-396.298166,0.00036358,31]
[393840363,1763033442707,-396.298166,0.00036358,31]
[393840364,1763033442719,-151.0,0.00036358,31]
[393840365,1763033442729,-151.0,0.00036358,31]
[393840366,1763033442740,-151.0,0.00036361,31]
[393840367,1763033442752,-151.0,0.00036361,31]
[393840368,1763033442764,-151.0,0.00036361,31]
[393840369,1763033442775,-151.0,0.00036361,14]
[393840370,1763033442788,-151.0,0.00036361,31]
[393840371,1763033442800,-151.0,0.00036361,31]
[393840372,1763033442812,-150.0,0.00036361,2]
[393840373,1763033442824,-2407.0,0.00036363,2]
[393840374,1763033442835,-12715.0405634,0.0003637,3]
[393840375,1763033442849,-501.95355844,0.00036373,5]
[393840376,1763033442860,-502.00096171,0.00036373,5]
[393840377,1763033442872,-1019.20832636,0.00036373,5]
[393840378,1763033442885,-25430.0811268,0.0003638,3]
[393840379,1763033442897,-12715.0405634,0.0003638,3]
[393840380,1763033442909,-500.0,0.00036389,7]
[393840381,1763033442921,-482.53721792,0.00036389,20]
[393840382,1763033442933,-500.0,0.00036389,20]
[393840383,1763033442943,-516.31305318,0.00036389,20]
[393840384,1763033442956,-631.36940064,0.00036389,20]
[393840385,1763033442967,-500.0,0.00036389,20]
[393840386,1763033442980,-500.0,0.00036389,20]
[393840387,1763033442991,-50154.4,0.0003639,2]
[393840388,1763033443003,-151.0,0.0003639,31]
[393840389,1763033443015,-151.0,0.0003639,31]
[393840390,1763033443026,-151.0,0.0003639,31]
[393840391,1763033443036,-151.0,0.0003639,31]
[393840392,1763033443046,-170.634603,0.0003639,31]
[393840393,1763033443056,-151.0,0.0003639,31]
[393840394,1763033443067,-151.0,0.0003639,30]
[393840395,1763033443081,-151.0,0.0003639,31]
[393840396,1763033443095,-151.0,0.0003639,31]
[393840397,1763033443105,-151.0,0.0003639,31]
[393840399,1763033443116,-151.0,0.0003639,31]
[393840400,1763033443126,-396.298166,0.0003639,31]
[393840402,1763033443136,-396.298166,0.0003639,31]
[393840404,1763033443147,-396.298166,0.0003639,31]
[393840405,1763033443161,-396.298166,0.0003639,31]
[393840406,1763033443173,-151.0,0.0003639,31]
[393840407,1763033443185,-213.0,0.00036391,2]
[393840408,1763033443195,-500.0,0.000364,5]
[393840409,1763033443204,-530.33053363,0.000364,5]
[393840410,1763033443215,-500.59935397,0.000364,5]
[393840411,1763033443225,-202.43,0.000364,14]
[393840412,1763033443237,-213.0,0.00036418,120]
[393840413,1763033443247,-405.90836484,0.00036423,5]
[393840414,1763033443258,-1231.0,0.00036445,5]
[393840415,1763033443269,-12715.0405634,0.0003647,4]
[393840416,1763033443280,-7729.16971327,0.000365,7]
[393840417,1763033443290,-156.042706,0.000365,14]
[393840418,1763033443300,-151.0,0.000365,31]
[393840419,1763033443311,-6664.0,0.00036525,2]
[393840420,1763033443321,-575.0,0.00036525,2]
[393840421,1763033443331,-3428.0,0.00036525,2]
[393840422,1763033443343,-213.0,0.00036538,7]
[393840423,1763033443354,-150.0,0.00036592,7]
[393840424,1763033443364,-599.18,0.00036601,16]
[393840425,1763033443375,-200.0,0.00036604,2]
[393840426,1763033443386,-12715.0405634,0.00036612,4]
[393840427,1763033443396,-1455.77,0.00036621,14]
[393840428,1763033443409,-1000.0,0.0003663,7]
[393840429,1763033443419,-1803.37524357,0.00036632,30]
[393840430,1763033443430,-1000.24079532,0.00036632,30]
[393840431,1763033443441,-1847.3488344,0.00036632,30]
[393840435,1763033443451,-1017.45328068,0.00036632,30]
[393840437,1763033443463,-1017.67628983,0.00036632,30]
[393840439,1763033443474,-1000.0,0.00036632,30]
[393840440,1763033443486,-1633.78437607,0.00036632,30]
[393840441,1763033443498,-1997.71458351,0.00036632,30]
[393840442,1763033443508,-1000.0,0.00036632,30]
[393840443,1763033443518,-1000.0,0.00036641,7]
[393840444,1763033443529,-1000.0,0.00036646,7]
[393840445,1763033443540,-1000.0,0.00036694,7]
[393840446,1763033443551,-1000.0,0.00036724,7]
[393840447,1763033443561,-1153.89,0.0003673,2]
[393840448,1763033443572,-1000.0,0.00036747,7]
[393840449,1763033443582,-358.76878844,0.00036767,2]
[393840450,1763033443594,-1000.0,0.00036778,7]
[393840451,1763033443605,-2406.0,0.00036795,7]
[393840452,1763033443616,-12715.0405634,0.00036811,4]
[393840453,1763033443627,-12715.0405634,0.0003683,4]
[393840454,1763033443638,-151.0,0.0003684,31]
[393840455,1763033443649,-151.0,0.0003684,31]
[393840456,1763033443659,-151.0,0.0003684,31]
[393840457,1763033443670,-151.0,0.0003684,31]
[393840458,1763033443681,-396.298166,0.0003684,31]
[393840459,1763033443692,-396.298166,0.0003684,31]
[393840460,1763033443703,-396.298166,0.0003684,31]
[393840461,1763033443714,-396.298166,0.0003684,31]
[393840462,1763033443725,-151.0,0.0003684,31]
[393840463,1763033443736,-1721.25,0.0003685,2]
[393840464,1763033443747,-1000.0,0.00036875,7]
[393840465,1763033443758,-1455.77,0.00036895,14]
[393840466,1763033443769,-1000.0,0.000369,7]
[393840467,1763033443781,-1000.0,0.00036936,7]
[393840468,1763033443793,-1000.0,0.00036948,5]
[393840469,1763033443803,-1000.0,0.00036967,7]
[393840470,1763033443814,-1000.0,0.00036995,7]
[393840471,1763033443825,-1561.85660384,0.00037,5]
[393840472,1763033443836,-150.32,0.00037028,2]
[393840473,1763033443848,-1000.0,0.00037038,7]
[393840474,1763033443860,-166.66,0.00037041,2]
[393840475,1763033443871,-358.76,0.00037073,2]
[393840476,1763033443882,-1041.6684853,0.00037099,7]
[393840477,1763033443892,-1000.0,0.000371,7]
[393840478,1763033443904,-1000.0,0.00037102,7]
[393840479,1763033443914,-1000.0,0.00037111,7]
[393840480,1763033443926,-1000.0,0.00037117,7]
[393840481,1763033443937,-1000.0,0.00037165,7]
[393840482,1763033443948,-1455.77,0.00037169,14]
[393840483,1763033443960,-5620.74589575,0.00037186,2]
[393840484,1763033443971,-202.43,0.000372,14]
[393840485,1763033443983,-12715.0405634,0.00037202,4]
[393840486,1763033443995,-10789.11368621,0.00037212,120]
[393840487,1763033444006,-169.21,0.00037267,2]
[393840488,1763033444018,-150.0,0.00037267,2]
[393840489,1763033444029,-177.09,0.00037267,2]
[393840490,1763033444041,-2045.83,0.00037267,2]
[393840491,1763033444052,-1000.0,0.00037296,7]
[393840492,1763033444062,-1000.0,0.00037303,7]
[393840493,1763033444074,-168.0,0.00037308,2]
[393840494,1763033444084,-1000.0,0.00037374,7]
[393840495,1763033444096,-168.40775089,0.000374,2]
[393840496,1763033444111,-150.0,0.00037405,7]
[393840498,1763033444122,-12715.0405634,0.00037409,4]
[393840500,1763033444134,-191.2920766,0.00037415,2]
[393840501,1763033444146,-200.0,0.00037415,10]
[393840502,1763033444157,-2406.0,0.00037441,120]
[393840503,1763033444168,-1007.39,0.00037441,120]
[393840504,1763033444180,-1455.77,0.00037443,14]
[393840505,1763033444191,-12715.0405634,0.00037465,4]
[393840506,1763033444202,-1007.39,0.00037468,120]
[393840507,1763033444214,-500.0,0.00037473,5]
[393840508,1763033444224,-500.0,0.00037473,5]
[393840509,1763033444236,-12715.0405634,0.00037474,4]
[393840510,1763033444247,-25430.0811268,0.00037474,4]
[393840511,1763033444258,-12715.0405634,0.00037475,4]
[393840512,1763033444268,-150.0,0.00037485,7]
[393840513,1763033444279,-282.70469,0.00037495,31]
[393840514,1763033444290,-151.0,0.00037495,31]
[393840515,1763033444301,-151.0,0.00037495,31]
[393840516,1763033444311,-396.298166,0.00037495,31]
[393840517,1763033444322,-396.298166,0.00037495,31]
[393840518,1763033444332,-396.298166,0.00037495,31]
[393840519,1763033444344,-396.298158,0.00037495,31]
[393840520,1763033444354,-151.0,0.00037495,31]
[393840521,1763033444365,-1500.0,0.00037496,5]
[393840522,1763033444376,-1007.39,0.00037498,120]
[393840523,1763033444388,-500.0,0.00037499,20]
[393840524,1763033444399,-153.103457,0.000375,31]
[393840525,1763033444409,-151.0,0.000375,31]
[393840526,1763033444420,-155.775543,0.000375,31]
[393840527,1763033444431,-1613.0,0.000375,7]
[393840528,1763033444441,-500.0,0.00037511,20]
[393840529,1763033444680,-500.0,0.00037511,20]
[393840530,1763033444690,-500.0,0.00037511,20]
[393840531,1763033444700,-500.0,0.00037514,20]
[393840532,1763033444709,-500.0,0.00037514,20]
[393840533,1763033444719,-500.0,0.00037514,20]
[393840534,1763033444728,-500.0,0.00037524,20]
[393840535,1763033444738,-500.0,0.00037524,20]
[393840536,1763033444748,-500.0,0.00037524,20]
[393840537,1763033444758,-204.30571111,0.00037524,20]
[393840538,1763033444768,-500.0,0.00037525,30]
[393840539,1763033444777,-1007.39,0.00037528,120]
[393840540,1763033444790,-2693.90526586,0.00037548,2]
[393840541,1763033444799,-151.0,0.00037548,2]
[393840542,1763033444808,-200.0,0.00037548,2]
[393840543,1763033444817,-150.0,0.00037548,7]
[393840544,1763033444826,-150.0,0.00037549,7]
[393840545,1763033444835,-1000.0,0.0003756,7]
[393840546,1763033444843,-1007.39,0.00037561,120]
[393840547,1763033444853,-395.9889972,0.00037563,2]
[393840548,1763033444862,-150.0,0.00037567,7]
[393840549,1763033444871,-593.94747728,0.00037573,5]
[393840550,1763033444880,-500.0,0.00037573,5]
[393840551,1763033444889,-500.0,0.00037573,5]
[393840552,1763033444898,-1007.39,0.00037595,120]
[393840553,1763033444907,-150.0,0.00037598,7]
[393840554,1763033444916,-166.66,0.00037617,30]
[393840555,1763033444925,-1000.0,0.00037626,7]
[393840556,1763033444934,-500.0,0.00037629,2]
[393840557,1763033444943,-1007.39,0.00037631,120]
[393840558,1763033444953,-512.96823338,0.00037633,20]
[393840559,1763033444963,-150.0,0.00037663,7]
[393840560,1763033444973,-1007.39,0.0003767,120]
[393840561,1763033444985,-168.0,0.00037677,2]
[393840562,1763033444995,-150.0,0.00037692,7]
[393840563,1763033445005,-2406.0,0.00037692,2]
[393840564,1763033445014,-150.0,0.00037696,7]
[393840565,1763033445025,-9482.68970787,0.00037699,2]
[393840566,1763033445034,-1007.39,0.00037711,120]
[393840567,1763033445045,-1455.77,0.00037717,14]
[393840568,1763033445054,-150.0,0.00037726,7]
[393840569,1763033445065,-1007.39,0.00037755,120]
[393840570,1763033445076,-150.0,0.00037757,7]
[393840571,1763033445087,-300.0,0.00037766,2]
[393840572,1763033445097,-150.0,0.00037772,7]
[393840573,1763033445108,-1000.0,0.00037781,7]
[393840574,1763033445120,-1000.0,0.00037794,7]
[393840575,1763033445129,-500.0,0.00037799,30]
[393840576,1763033445139,-150.0,0.00037801,7]
[393840577,1763033445148,-1007.39,0.00037803,120]
[393840578,1763033445158,-1000.0,0.00037819,7]
[393840579,1763033445167,-150.0,0.00037823,7]
[393840580,1763033445176,-150.0,0.00037828,7]
[393840581,1763033445187,-306.72261386,0.00037835,7]
[393840582,1763033445196,-1000.0,0.00037835,7]
[393840583,1763033445205,-150.0,0.00037846,7]
[393840584,1763033445214,-2406.0,0.00037849,2]
[393840585,1763033445223,-168.40775086,0.00037854,2]
[393840586,1763033445232,-1007.39,0.00037855,120]
[393840587,1763033445241,-150.0,0.00037862,7]
[393840588,1763033445251,-1000.0,0.00037863,7]
[393840589,1763033445260,-168.0,0.00037876,2]
[393840590,1763033445270,-1000.0,0.00037901,7]
[393840591,1763033445279,-1007.39,0.00037912,120]
[393840592,1763033445289,-734.22,0.00037923,2]
[393840593,1763033445298,-150.0,0.00037958,7]
[393840594,1763033445307,-1000.0,0.00037973,7]
[393840595,1763033445316,-1007.39,0.00037975,120]
[393840596,1763033445325,-150.0,0.0003798,7]
[393840597,1763033445334,-150.0,0.0003799,7]
[393840598,1763033445343,-1455.77,0.00037991,14]
[393840599,1763033445353,-168.0,0.00037995,2]
[393840600,1763033445362,-1000.0,0.00038,120]
[393840601,1763033445371,-774.0,0.00038,2]
[393840602,1763033445380,-202.43,0.00038,14]
[393840603,1763033445389,-939.0,0.00038,2]
[393840604,1763033445398,-352.60446114,0.00038021,5]
[393840605,1763033445407,-150.0,0.00038022,7]
[393840606,1763033445416,-150.0,0.00038034,7]
[393840607,1763033445425,-5620.74589575,0.00038035,2]
[393840608,1763033445434,-150.0,0.00038037,7]
[393840609,1763033445444,-500.0,0.00038044,5]
[393840610,1763033445453,-1007.39,0.00038046,120]
[393840611,1763033445463,-1000.0,0.00038049,7]
[393840612,1763033445473,-1000.0,0.00038054,7]
[393840613,1763033445483,-500.0,0.00038073,30]
[393840614,1763033445492,-150.0,0.00038097,7]
[393840615,1763033445501,-150.0,0.00038105,7]
[393840616,1763033445510,-150.0,0.00038117,7]
[393840617,1763033445520,-569.20872666,0.00038121,5]
[393840618,1763033445529,-150.0,0.00038125,7]
[393840619,1763033445538,-1007.39,0.00038126,120]
[393840620,1763033445548,-150.0,0.00038166,7]
[393840621,1763033445557,-150.0,0.00038175,7]
[393840622,1763033445566,-1000.0,0.0003818,7]
[393840623,1763033445576,-1010.0,0.000382,7]
[393840624,1763033445585,-150.0,0.00038205,7]
[393840625,1763033445594,-1007.39,0.00038218,120]
[393840626,1763033445603,-150.0,0.00038218,7]
[393840627,1763033445613,-300.0,0.00038248,2]
[393840628,1763033445622,-152.0,0.00038256,5]
[393840629,1763033445632,-166.66,0.00038264,2]
[393840630,1763033445641,-1455.77,0.00038265,14]
[393840631,1763033445651,-150.0,0.00038283,7]
[393840632,1763033445660,-1096.0,0.00038285,2]
[393840633,1763033445669,-150.0,0.00038291,7]
[393840634,1763033445678,-168.40775086,0.00038308,2]
[393840635,1763033445688,-1000.0,0.0003831,7]
[393840636,1763033445697,-300.0,0.00038312,2]
[393840637,1763033445707,-1000.0,0.00038316,7]
[393840638,1763033445716,-1007.39,0.00038327,120]
[393840639,1763033445725,-325.0,0.00038329,120]
[393840640,1763033445734,-150.0,0.00038338,7]
[393840641,1763033445743,-195.50802629,0.00038345,120]
[393840642,1763033445752,-500.0,0.00038347,30]
[393840643,1763033445762,-166.66,0.00038348,30]
[393840644,1763033445771,-500.0,0.0003835,5]
[393840645,1763033445780,-150.0,0.00038352,7]
[393840646,1763033445789,-300.0,0.00038355,10]
[393840647,1763033445799,-300.0,0.00038355,10]
[393840648,1763033445807,-150.0,0.00038356,30]
[393840649,1763033445817,-1000.0,0.00038356,2]
[393840650,1763033445826,-1000.0,0.00038356,2]
[393840651,1763033445835,-1000.0,0.00038356,2]
[393840652,1763033445845,-500.0,0.00038356,20]
[393840653,1763033445855,-500.0,0.00038356,20]
[393840654,1763033445864,-518.17627398,0.00038356,20]
[393840655,1763033445873,-500.0,0.00038356,20]
[393840656,1763033445883,-500.0,0.00038356,20]
[393840657,1763033445892,-500.0,0.00038356,20]
[393840658,1763033445901,-500.0,0.00038356,20]
[393840659,1763033445910,-500.0,0.00038356,20]
[393840660,1763033445921,-500.0,0.00038356,20]
[393840661,1763033445930,-500.0,0.00038356,20]
[393840662,1763033445941,-500.0,0.00038356,20]
[393840663,1763033445950,-500.0,0.00038356,20]
[393840664,1763033445959,-500.0,0.00038356,20]
[393840665,1763033445968,-500.0,0.00038356,20]
[393840666,1763033445978,-500.0,0.00038356,20]
[393840667,1763033445987,-500.0,0.00038356,20]
[393840668,1763033445996,-500.0,0.00038356,20]
[393840669,1763033446006,-185.08123688,0.00038356,20]
[393840670,1763033446015,-509.06253574,0.00038356,20]
[393840671,1763033446024,-500.0,0.00038356,20]
[393840672,1763033446033,-500.0,0.00038356,20]
[393840673,1763033446043,-500.0,0.00038356,20]
[393840674,1763033446052,-500.0,0.00038356,20]
[393840675,1763033446061,-500.0,0.00038356,20]
[393840676,1763033446070,-500.0,0.00038356,20]
[393840677,1763033446079,-500.0,0.00038356,20]
[393840678,1763033446089,-500.0,0.00038356,20]
[393840679,1763033446099,-500.0,0.00038356,20]
[393840680,1763033446111,-500.0,0.00038356,20]
[393840681,1763033446120,-500.0,0.00038356,20]
[393840682,1763033446130,-500.0,0.00038356,20]
[393840683,1763033446140,-500.0,0.00038356,20]
[393840684,1763033446152,-500.0,0.00038356,20]
[393840685,1763033446162,-500.0,0.00038356,20]
[393840686,1763033446172,-500.0,0.00038356,20]
[393840687,1763033446181,-500.0,0.00038356,20]
[393840688,1763033446194,-500.0,0.00038356,20]
[393840689,1763033446204,-500.0,0.00038356,20]
[393840690,1763033446214,-500.0,0.00038356,20]
[393840691,1763033446225,-500.0,0.00038356,20]
[393840692,1763033446234,-507.66020252,0.00038356,20]
[393840693,1763033446243,-500.0,0.00038356,20]
[393840694,1763033446254,-500.0,0.00038356,20]
[393840695,1763033446263,-500.0,0.00038356,20]
[393840696,1763033446272,-500.0,0.00038356,20]
[393840697,1763033446282,-500.0,0.00038356,20]
[393840698,1763033446292,-500.0,0.00038356,20]
[393840699,1763033446301,-500.44606773,0.00038356,20]
[393840700,1763033446311,-500.0,0.00038356,20]
[393840701,1763033446320,-500.0,0.00038356,20]
[393840703,1763033446329,-500.0,0.00038356,20]
[393840705,1763033446339,-500.0,0.00038356,20]
[393840707,1763033446349,-500.0,0.00038356,20]
[393840709,1763033446358,-500.0,0.00038356,20]
[393840711,1763033446368,-500.0,0.00038356,20]
[393840713,1763033446377,-500.0,0.00038356,20]
[393840715,1763033446386,-506.03733701,0.00038356,20]
[393840717,1763033446395,-500.0,0.00038356,20]
[393840719,1763033446404,-500.0,0.00038356,20]
[393840721,1763033446413,-500.0,0.00038356,20]
[393840723,1763033446422,-500.0,0.00038356,20]
[393840725,1763033446432,-500.0,0.00038356,20]
[393840727,1763033446441,-500.0,0.00038356,20]
[393840729,1763033446451,-500.0,0.00038356,20]
[393840730,1763033446460,-500.0,0.00038356,20]
[393840732,1763033446469,-500.0,0.00038356,20]
[393840734,1763033446478,-500.0,0.00038356,20]
[393840736,1763033446487,-500.0,0.00038356,20]
[393840738,1763033446497,-500.0,0.00038356,20]
[393840740,1763033446507,-500.0,0.00038356,20]
[393840742,1763033446516,-500.0,0.00038356,20]
[393840743,1763033446525,-500.0,0.00038356,20]
[393840744,1763033446534,-500.0,0.00038356,20]
[393840745,1763033446544,-500.0,0.00038356,20]
[393840746,1763033446553,-500.0,0.00038356,20]
[393840747,1763033446563,-500.0,0.00038356,20]
[393840748,1763033446572,-500.0,0.00038356,20]
[393840749,1763033446580,-500.0,0.00038356,20]
[393840750,1763033446590,-500.0,0.00038356,20]
[393840751,1763033446600,-500.0,0.00038356,20]
[393840752,1763033446609,-500.0,0.00038356,20]
[393840753,1763033446618,-500.0,0.00038356,20]
[393840754,1763033446627,-500.0,0.00038356,20]
[393840755,1763033446636,-500.0,0.00038356,20]
[393840756,1763033446645,-500.0,0.00038356,20]
[393840757,1763033446655,-500.0,0.00038356,20]
[393840758,1763033446664,-500.0,0.00038356,20]
[393840759,1763033446673,-500.0,0.00038356,20]
[393840760,1763033446682,-500.0,0.00038356,20]
[393840761,1763033446691,-500.0,0.00038356,20]
[393840762,1763033446701,-500.0,0.00038356,20]
[393840763,1763033446710,-500.0,0.00038356,20]
[393840764,1763033446720,-500.0,0.00038356,20]
[393840765,1763033446730,-500.0,0.00038356,20]
[393840766,1763033446740,-500.0,0.00038356,20]
[393840767,1763033446750,-500.0,0.00038356,20]
[393840768,1763033446759,-500.0,0.00038356,20]
[393840769,1763033446768,-500.0,0.00038356,20]
[393840770,1763033446778,-500.0,0.00038356,20]
[393840771,1763033446787,-500.0,0.00038356,20]
[393840772,1763033446796,-500.0,0.00038356,20]
[393840773,1763033446805,-500.0,0.00038356,20]
[393840774,1763033446815,-502.66592749,0.00038356,20]
[393840775,1763033446825,-500.0,0.00038356,20]
[393840776,1763033446834,-500.0,0.00038356,20]
[393840777,1763033446844,-500.0,0.00038356,20]
[393840778,1763033446853,-500.0,0.00038356,20]
[393840779,1763033446863,-500.0,0.00038356,20]
[393840780,1763033446872,-500.0,0.00038356,20]
[393840781,1763033446881,-500.0,0.00038356,20]
[393840782,1763033446891,-500.0,0.00038356,20]
[393840783,1763033446901,-500.0,0.00038356,20]
[393840784,1763033446911,-500.0,0.00038356,20]
[393840785,1763033446920,-500.0,0.00038356,20]
[393840786,1763033446930,-500.0,0.00038356,20]
[393840787,1763033446939,-500.0,0.00038356,20]
[393840788,1763033446948,-500.0,0.00038356,20]
[393840789,1763033446959,-500.0,0.00038356,20]
[393840790,1763033446968,-500.0,0.00038356,20]
[393840791,1763033446978,-500.0,0.00038356,20]
[393840792,1763033446987,-500.0,0.00038356,20]
[393840793,1763033446996,-500.0,0.00038356,20]
[393840794,1763033447005,-500.0,0.00038356,20]
[393840795,1763033447015,-500.0,0.00038356,20]
[393840796,1763033447024,-500.0,0.00038356,20]
[393840797,1763033447034,-500.0,0.00038356,20]
[393840798,1763033447045,-500.0,0.00038356,20]
[393840799,1763033447055,-500.0,0.00038356,20]
[393840800,1763033447064,-500.0,0.00038356,20]
[393840801,1763033447074,-500.0,0.00038356,20]
[393840802,1763033447083,-500.0,0.00038356,20]
[393840803,1763033447093,-500.0,0.00038356,20]
[393840804,1763033447102,-500.0,0.00038356,20]
[393840805,1763033447116,-500.0,0.00038356,20]
[393840806,1763033447126,-500.0,0.00038356,20]
[393840807,1763033447135,-500.0,0.00038356,20]
[393840808,1763033447145,-1000.0,0.00038356,2]
[393840809,1763033447155,-500.77961132,0.00038356,20]
[393840810,1763033447165,-503.26682726,0.00038356,20]
[393840811,1763033447174,-500.73090455,0.00038356,20]
[393840812,1763033447183,-500.0,0.00038356,20]
[393840813,1763033447194,-500.0,0.00038356,20]
[393840814,1763033447205,-500.0,0.00038356,20]
[393840815,1763033447214,-500.0,0.00038356,20]
[393840816,1763033447223,-500.0,0.00038356,20]
[393840817,1763033447232,-500.0,0.00038356,20]
[393840818,1763033447243,-500.0,0.00038356,20]
[393840819,1763033447255,-500.0,0.00038356,20]
[393840820,1763033447265,-500.0,0.00038356,20]
[393840821,1763033447275,-500.0,0.00038356,20]
[393840822,1763033447284,-500.0,0.00038356,20]
[393840823,1763033447295,-500.0,0.00038356,20]
[393840824,1763033447304,-394.12178045,0.00038356,20]
[393840825,1763033447313,-500.0,0.00038356,20]
[393840826,1763033447322,-500.0,0.00038356,20]
[393840827,1763033447332,-500.0,0.00038356,20]
[393840828,1763033447341,-500.0,0.00038356,20]
[393840829,1763033447351,-500.0,0.00038356,20]
[393840830,1763033447364,-502.35512845,0.00038356,20]
[393840831,1763033447374,-500.0,0.00038356,20]
[393840832,1763033447384,-500.0,0.00038356,20]
[393840833,1763033447393,-500.0,0.00038356,20]
[393840834,1763033447402,-150.0,0.00038356,5]
[393840835,1763033447411,-515.67083675,0.00038356,20]
[393840836,1763033447420,-371.43657109,0.00038356,20]
[393840837,1763033447430,-500.0,0.00038356,5]
[393840838,1763033447441,-500.0,0.00038356,2]
[393840839,1763033447451,-500.0,0.00038356,2]
[393840840,1763033447461,-500.0,0.00038356,2]
[393840841,1763033447471,-500.0,0.00038356,2]